bitfinex/quotes_SOLUSD_20250806
["timestamp","ask_amount","ask_price","bid_price","bid_amount"]
[1754503493281,6.06404346,170.07,170.05,41.58]
[1754503493602,0.72,170.06,170.05,41.58]
[1754503494302,0.72,170.06,170.05,47.46062334]
[1754503494800,0.72,170.06,170.04,0.06]
[1754503495010,0.72,170.06,170.04,5.94095332]
[1754503495381,1e-08,170.07,170.04,5.94095332]
[1754503495571,0.72000001,170.07,170.06,6.06404345]
[1754503495776,0.72,170.06,170.05,47.64404345]
[1754503495995,0.72,170.06,170.05,41.58]
[1754503496404,0.72,170.06,170.05,47.46062334]
[1754503498312,1e-08,170.07,170.05,53.52466679]
[1754503498480,1e-08,170.07,170.06,6.06404345]
[1754503498680,1e-08,170.07,170.05,48.12062334]
[1754503498992,1e-08,170.07,170.06,6.06404345]
[1754503499793,1e-08,170.07,170.06,6.72404345]
[1754503500198,1e-08,170.07,170.06,0.66]
[1754503500416,1e-08,170.07,170.06,11.94432099]
[1754503500790,1e-08,170.07,170.06,12.60432099]
[1754503502396,1e-08,170.07,170.06,6.60027754]
[1754503502704,1e-08,170.07,170.06,12.66432099]
[1754503503886,1e-08,170.07,170.06,12.00432099]
[1754503504089,1e-08,170.07,170.06,53.58432099]
[1754503504914,1e-08,170.07,170.06,12.00432099]
[1754503505215,1e-08,170.07,170.06,53.58432099]
[1754503505519,1e-08,170.07,170.06,12.66432099]
[1754503505727,1e-08,170.07,170.06,54.24432099]
[1754503506392,1e-08,170.07,170.06,71.90644499]
[1754503506793,1e-08,170.07,170.06,72.19076813]
[1754503507398,1e-08,170.07,170.06,29.66644499]
[1754503507594,0.72000001,170.07,170.06,12.00432099]
[1754503507795,0.72000001,170.07,170.06,47.52027754]
[1754503508012,0.72000001,170.07,170.06,53.58432099]
[1754503508412,1e-08,170.07,170.06,54.24432099]
[1754503509819,1e-08,170.07,170.06,71.90644499]
[1754503510318,1e-08,170.09,170.06,86.60713886]
[1754503510494,1e-08,170.09,170.08,6.06404345]
[1754503510693,1e-08,170.09,170.08,53.52362952]
[1754503510891,1e-08,170.09,170.08,54.18362952]
[1754503511090,1e-08,170.09,170.08,53.52362952]
[1754503511507,0.72000001,170.09,170.08,47.45958607]
[1754503511695,0.72000001,170.09,170.08,5.87958607]
[1754503511898,0.72000001,170.09,170.08,47.45958607]
[1754503512896,0.72000001,170.09,170.08,53.52362952]
[1754503513097,1e-08,170.09,170.08,47.45958607]
[1754503513618,0.72000001,170.09,170.08,47.45958607]
[1754503514022,6.78404346,170.09,170.06,0.06]
[1754503514194,6.06404345,170.07,170.05,5.88059059]
[1754503514390,6.78404345,170.06,170.05,5.88059059]
[1754503514625,0.72,170.06,170.05,5.88059059]
[1754503515613,0.72,170.06,170.04,0.06]
[1754503515614,0.72,170.06,170.04,5.94086634]
[1754503515807,6.06404345,170.05,170.04,0.06]
[1754503516315,6.78404345,170.05,170.04,0.06]
[1754503516625,0.72,170.05,170.04,0.06]
[1754503516817,6.78404345,170.05,170.04,0.06]
[1754503517623,12.66466679,170.05,170.04,0.06]
[1754503518004,32.01297856,170.05,170.04,0.06]
[1754503518205,36.79786836,170.05,170.04,0.06]
[1754503518520,32.01297856,170.05,170.04,0.06]
[1754503519212,6.78404345,170.05,170.04,0.06]
[1754503519413,54.24466679,170.05,170.04,0.06]
[1754503519714,48.36404345,170.05,170.04,0.06]
[1754503520611,42.3,170.05,170.04,0.06]
[1754503521199,48.36404345,170.05,170.04,0.06]
[1754503521402,6.78404345,170.05,170.04,0.06]
[1754503521829,0.72,170.05,170.04,0.06]
[1754503522027,6.78404345,170.05,170.04,0.06]
[1754503522433,12.66466679,170.05,170.04,0.06]
[1754503523029,0.72,170.05,170.04,0.06]
[1754503527532,6.78404345,170.05,170.04,0.06]
[1754503528532,12.66466679,170.05,170.04,0.06]
[1754503528932,6.78404345,170.05,170.04,0.06]
[1754503529132,12.66466679,170.05,170.04,0.06]
[1754503529831,6.78404345,170.05,170.04,0.06]
[1754503531043,0.72,170.05,170.04,0.06]
[1754503531347,41.6,170.06,170.04,0.06]
[1754503532417,0.72,170.06,170.04,0.06]
[1754503534048,6.06404345,170.07,170.04,0.06]
[1754503534256,0.72,170.05,170.04,0.06]
[1754503534450,6.78404345,170.05,170.04,0.06]
[1754503536035,12.66466679,170.05,170.04,0.06]
[1754503536659,28.0552055,170.05,170.04,0.06]
[1754503540759,54.0552055,170.05,170.04,0.06]
[1754503541061,41.39053871,170.03,170.02,0.06]
[1754503541247,89.05458216,170.03,169.99,0.06]
[1754503541447,27.51862561,170.0,169.99,0.06]
[1754503541757,63.05458216,170.0,169.99,0.06]
[1754503541970,63.77458216,170.0,169.99,0.06]
[1754503543161,101.72097855,170.0,169.99,0.06]
[1754503543340,41.39053871,169.98,169.97,0.06]
[1754503543542,89.05458216,169.98,169.97,0.06]
[1754503543861,93.71867033,169.98,169.96,0.06]
[1754503544161,6.78404345,169.97,169.96,0.06]
[1754503545139,12.66743463,169.97,169.96,0.06]
[1754503545661,28.05797334,169.97,169.95,0.06]
[1754503545961,48.38404345,169.96,169.95,0.06]
[1754503546142,63.77458216,169.96,169.95,0.06]
[1754503546341,15.10621557,169.95,169.88,6.08648002]
[1754503546580,6.06404345,169.89,169.88,6.08648002]
[1754503547281,6.06404345,169.89,169.88,0.2]
[1754503548073,6.78404345,169.89,169.88,0.2]
[1754503548583,41.6,169.9,169.88,0.18]
[1754503548790,22.17458216,169.89,169.88,0.18]
[1754503549086,6.34836659,169.87,169.86,0.2]
[1754503549237,69.04143681,169.87,169.86,0.2]
[1754503549447,69.76143681,169.87,169.82,0.2]
[1754503549662,21.17025902,169.83,169.82,0.2]
[1754503549846,62.87025902,169.83,169.82,0.2]
[1754503550195,63.59025902,169.83,169.82,0.2]
[1754503550545,21.89025902,169.83,169.82,0.2]
[1754503550768,22.17458216,169.83,169.82,0.2]
[1754503550956,89.89458216,169.83,169.82,0.2]
[1754503551277,95.78282334,169.83,169.82,0.2]
[1754503552564,22.17458216,169.83,169.82,0.2]
[1754503552763,41.72,169.83,169.82,6.08853816]
[1754503552960,47.78404345,169.83,169.82,6.08853816]
[1754503553159,47.78404345,169.83,169.82,0.86]
[1754503553570,47.78404345,169.83,169.82,0.2]
[1754503553763,63.61025902,169.83,169.82,0.2]
[1754503554344,47.78404345,169.83,169.82,0.2]
[1754503555249,47.84404345,169.83,169.82,0.2]
[1754503555445,6.06404345,169.83,169.82,0.2]
[1754503555650,47.82404345,169.83,169.82,0.2]
[1754503555850,6.06404345,169.83,169.82,0.2]
[1754503556155,47.82404345,169.83,169.82,0.2]
[1754503556772,41.76,169.83,169.82,0.2]
[1754503556969,41.78,169.84,169.82,6.74858791]
[1754503557168,6.06404345,169.87,169.83,0.66]
[1754503557372,41.96,169.86,169.84,5.88789448]
[1754503557577,41.96,169.86,169.83,5.88815503]
[1754503557888,48.74404345,169.86,169.82,6.74857403]
[1754503558183,48.02404345,169.86,169.82,6.74857403]
[1754503558371,41.96,169.86,169.82,6.74857403]
[1754503558569,41.96,169.86,169.83,0.66]
[1754503559071,41.96,169.86,169.83,6.72404345]
[1754503559385,41.96,169.86,169.84,5.88789448]
[1754503559976,41.96,169.86,169.84,6.54789448]
[1754503560182,41.96,169.86,169.84,5.88789448]
[1754503560387,41.96,169.86,169.85,0.66]
[1754503560957,41.96,169.86,169.84,11.95193793]
[1754503561157,6.78404345,169.89,169.84,12.61193793]
[1754503561382,41.94,169.88,169.86,5.88720122]
[1754503561579,41.96,169.88,169.86,5.88720122]
[1754503561778,41.96,169.88,169.85,6.54744025]
[1754503562064,6.06404345,169.9,169.86,0.66]
[1754503562286,161.14837714,169.91,169.86,0.66]
[1754503562287,41.96,169.89,169.87,6.06404345]
[1754503562587,187.86,169.91,169.88,0.66]
[1754503562998,187.86,169.91,169.87,6.06404345]
[1754503563494,187.86,169.91,169.85,20.60630984]
[1754503563495,145.9,169.91,169.88,12.61055157]
[1754503563797,187.84,169.91,169.89,0.66]
[1754503564094,187.84,169.91,169.88,11.95055157]
[1754503564390,6.06404345,169.95,169.9,6.06404345]
[1754503564588,41.94,169.94,169.91,6.72404345]
[1754503564763,41.94,169.94,169.9,6.06404345]
[1754503564964,41.94,169.94,169.9,6.72404345]
[1754503565389,41.94,169.94,169.91,5.88546877]
[1754503566077,0.72,169.93,169.89,6.06404345]
[1754503566481,42.64,169.93,169.89,6.72404345]
[1754503566990,42.64,169.93,169.86,5.88720122]
[1754503566991,15.10621557,169.89,169.82,6.08850453]
[1754503567292,6.06404345,169.84,169.82,6.08850453]
[1754503567494,6.06404345,169.84,169.82,0.2]
[1754503567793,47.96404345,169.85,169.82,0.2]
[1754503567983,47.96404345,169.85,169.82,6.0884756]
[1754503568190,41.9,169.85,169.82,6.0884756]
[1754503568368,41.9,169.85,169.82,6.7484756]
[1754503568868,41.9,169.85,169.82,6.0884756]
[1754503570093,52.33921116,169.85,169.82,6.0884756]
[1754503570400,41.9,169.85,169.82,6.0884756]
[1754503571280,52.33921116,169.85,169.82,6.0884756]
[1754503571975,0.72,169.84,169.82,0.2]
[1754503572293,0.72,169.84,169.82,6.08853948]
[1754503572681,51.61921116,169.85,169.82,6.08853948]
[1754503572880,0.72,169.84,169.82,0.2]
[1754503573180,67.46542673,169.83,169.82,0.2]
[1754503573589,52.35921116,169.83,169.82,0.2]
[1754503573784,41.92,169.83,169.82,0.2]
[1754503574093,41.94,169.85,169.82,6.74858791]
[1754503574295,9.71921116,169.88,169.83,10.37921116]
[1754503574469,41.94,169.87,169.84,9.71921116]
[1754503574670,0.72,169.88,169.84,9.71921116]
[1754503574888,41.94,169.89,169.86,5.88720122]
[1754503575270,0.72,169.88,169.86,5.88720122]
[1754503575871,41.94,169.9,169.86,6.54720122]
[1754503576167,10.43921116,169.89,169.85,5.88744696]
[1754503576469,10.43921116,169.88,169.83,5.88824118]
[1754503576677,0.72,169.87,169.83,15.60745234]
[1754503576894,41.96,169.88,169.83,16.26745234]
[1754503577277,41.96,169.88,169.85,9.71921116]
[1754503577472,10.43921116,169.9,169.85,10.37921116]
[1754503577791,42.68,169.9,169.85,9.71921116]
[1754503577991,42.68,169.9,169.86,9.71921116]
[1754503577992,41.96,169.9,169.86,9.71921116]
[1754503578177,0.72,169.89,169.85,9.71921116]
[1754503578378,51.67921116,169.9,169.85,9.71921116]
[1754503578597,0.72,169.88,169.85,9.69921116]
[1754503579093,0.72,169.88,169.86,5.88720122]
[1754503580526,0.72,169.87,169.85,5.88743976]
[1754503582323,41.96,169.9,169.85,6.56743976]
[1754503582626,41.96,169.9,169.87,9.71921116]
[1754503583224,42.68,169.9,169.87,9.71921116]
[1754503583403,42.68,169.9,169.87,15.60606402]
[1754503583610,42.68,169.9,169.87,5.88685286]
[1754503584003,0.72,169.89,169.85,9.71921116]
[1754503584222,0.72,169.88,169.84,5.88789448]
[1754503584417,0.72,169.88,169.85,9.71921116]
[1754503584927,0.72,169.88,169.83,15.40042391]
[1754503584928,0.72,169.87,169.83,5.88813982]
[1754503585141,15.82621557,169.89,169.85,9.71921116]
[1754503585315,42.7,169.89,169.86,9.71921116]
[1754503586005,0.72,169.88,169.83,5.88813982]
[1754503586208,0.72,169.88,169.85,9.71921116]
[1754503586915,0.72,169.88,169.86,9.71921116]
[1754503587222,0.72,169.88,169.86,5.88720122]
[1754503589400,0.72,169.88,169.85,15.6066628]
[1754503589599,4.67498906,169.88,169.85,5.88745164]
[1754503589926,0.72,169.87,169.84,15.60683422]
[1754503590736,3.95498906,169.88,169.84,15.60683422]
[1754503591026,0.72,169.87,169.85,0.06]
[1754503593044,0.72,169.86,169.85,0.06]
[1754503596014,10.78037022,169.88,169.85,0.06]
[1754503596249,0.75,169.88,169.85,0.06]
[1754503596411,0.03,169.88,169.85,6.81223351]
[1754503597339,0.03,169.88,169.85,6.13223351]
[1754503597513,26.03,169.88,169.85,6.13223351]
[1754503597915,26.75,169.88,169.85,0.06]
[1754503598142,26.75,169.88,169.85,5.94754783]
[1754503598851,145.9,169.87,169.85,5.94754783]
[1754503599030,145.9,169.87,169.85,12.01978134]
[1754503599433,145.9,169.87,169.85,12.69978134]
[1754503600652,0.03,169.88,169.86,6.75223351]
[1754503600858,0.03,169.88,169.87,6.07223351]
[1754503601033,0.03,169.88,169.87,0.68]
[1754503601224,0.03,169.91,169.87,6.75223351]
[1754503601419,0.03,169.91,169.9,6.07223351]
[1754503601846,0.03,169.91,169.9,12.82446702]
[1754503602555,0.03,169.91,169.9,18.7102822]
[1754503602858,146.62,169.99,169.9,33.42482016]
[1754503603069,145.9,169.99,169.98,6.07223351]
[1754503603354,0.72,169.99,169.95,0.68]
[1754503603563,0.72,169.99,169.96,6.07223351]
[1754503604339,21.17844908,170.01,169.96,11.95588718]
[1754503604659,0.72,169.98,169.96,5.88365367]
[1754503605059,13.65491651,170.0,169.96,5.88365367]
[1754503605263,0.72,169.99,169.96,5.88365367]
[1754503606065,156.32232776,169.99,169.94,5.88423032]
[1754503606366,9.70232776,169.97,169.94,5.88423032]
[1754503606532,0.72,169.96,169.93,5.88477222]
[1754503606865,0.72,169.95,169.93,5.88477222]
[1754503607051,0.72,169.95,169.92,5.88500875]
[1754503607258,0.72,169.95,169.92,15.58733651]
[1754503609164,9.70232776,169.97,169.92,5.88500875]
[1754503609367,0.68,169.95,169.92,5.88500875]
[1754503609676,0.68,169.95,169.92,15.58733651]
[1754503610941,0.68,169.97,169.93,9.70232776]
[1754503611142,0.68,169.96,169.9,0.67]
[1754503611448,9.70232776,169.95,169.9,15.58814294]
[1754503611648,0.68,169.94,169.9,16.25814294]
[1754503611850,10.38232776,169.96,169.91,9.70232776]
[1754503612053,9.70232776,169.96,169.91,9.70232776]
[1754503612256,0.68,169.95,169.91,10.37232776]
[1754503612575,9.70232776,169.96,169.92,10.37232776]
[1754503612946,0.03,169.95,169.92,10.37232776]
[1754503613145,0.03,169.95,169.91,15.58768223]
[1754503613347,0.71,169.95,169.91,16.25768223]
[1754503614453,0.03,169.95,169.91,16.25768223]
[1754503614654,0.03,169.95,169.93,9.70232776]
[1754503615054,0.03,169.95,169.94,9.70232776]
[1754503615255,0.03,169.95,169.94,10.37232776]
[1754503615448,0.03,169.95,169.94,0.67]
[1754503615643,0.03,169.95,169.93,9.70232776]
[1754503615848,0.03,169.95,169.93,10.37232776]
[1754503616046,0.03,169.95,169.94,9.70232776]
[1754503616252,0.03,169.95,169.94,10.37232776]
[1754503616851,0.03,169.95,169.94,16.25675755]
[1754503619885,0.03,169.95,169.94,15.58675755]
[1754503620781,0.71,169.95,169.91,15.58779653]
[1754503621077,10.38232776,169.94,169.9,5.88568492]
[1754503621278,0.68,169.93,169.9,5.88568492]
[1754503621446,0.71,169.95,169.91,10.37232776]
[1754503622291,0.03,169.95,169.93,9.70232776]
[1754503622775,0.03,169.95,169.94,0.67]
[1754503623092,0.03,169.95,169.93,9.70232776]
[1754503623369,0.03,169.95,169.93,10.37232776]
[1754503623569,0.03,169.95,169.94,10.37232776]
[1754503624051,0.03,169.95,169.94,16.25675755]
[1754503624670,0.03,169.95,169.94,12.61764682]
[1754503624862,0.03,169.95,169.94,6.55442979]
[1754503625046,0.03,169.95,169.94,12.61764682]
[1754503626671,0.03,169.95,169.94,6.55442979]
[1754503626860,0.03,169.95,169.94,11.94764682]
[1754503627378,0.03,169.95,169.94,12.61764682]
[1754503627877,0.03,169.95,169.94,6.55442979]
[1754503628100,0.03,169.95,169.94,5.88442979]
[1754503628279,0.03,169.95,169.94,6.55442979]
[1754503628464,0.03,169.95,169.94,12.61764682]
[1754503629388,0.03,169.95,169.94,11.94764682]
[1754503630450,0.03,169.95,169.94,12.61764682]
[1754503631388,0.03,169.95,169.94,6.55442979]
[1754503631557,0.03,169.95,169.94,11.94764682]
[1754503634406,0.03,169.95,169.94,12.61764682]
[1754503635271,0.71,169.95,169.91,6.12321703]
[1754503635480,0.71,169.95,169.91,12.00861455]
[1754503636087,0.68,169.94,169.91,12.00861455]
[1754503638195,0.68,169.94,169.92,6.06321703]
[1754503638375,0.03,169.95,169.91,6.61539752]
[1754503638699,0.75,169.95,169.92,6.06321703]
[1754503639473,0.75,169.95,169.92,11.94821371]
[1754503639902,0.72,169.94,169.92,5.88499668]
[1754503641176,0.03,169.95,169.92,5.88499668]
[1754503641371,0.03,169.95,169.93,42.42]
[1754503641597,0.03,169.95,169.94,6.06321703]
[1754503642096,0.03,169.95,169.94,6.78321703]
[1754503643379,0.03,169.95,169.94,12.66764682]
[1754503644076,0.03,169.95,169.94,6.60442979]
[1754503644289,0.03,169.95,169.94,12.66764682]
[1754503648501,0.03,169.95,169.94,11.94764682]
[1754503651901,0.03,169.95,169.94,5.88442979]
[1754503652084,0.03,169.95,169.94,11.94764682]
[1754503653999,0.03,169.95,169.94,12.66764682]
[1754503656784,0.03,169.95,169.94,6.60442979]
[1754503657107,0.03,169.95,169.94,12.66764682]
[1754503659287,1e-08,169.95,169.94,12.66764682]
[1754503672533,0.72,170.01,169.94,56.8008703]
[1754503672739,0.72,170.03,170.0,6.06321703]
[1754503672913,0.72,170.03,170.02,6.06321703]
[1754503673224,0.72,170.03,170.02,47.70321703]
[1754503674003,0.72,170.03,170.02,53.58487801]
[1754503674522,0.72,170.03,170.02,47.52166098]
[1754503675030,0.72,170.03,170.02,53.58487801]
[1754503676831,0.72,170.03,170.02,47.52166098]
[1754503677132,0.72,170.03,170.02,53.58487801]
[1754503680450,0.03,170.06,170.02,53.58487801]
[1754503680605,0.72,170.04,170.03,6.06321703]
[1754503680947,0.72,170.04,170.03,47.70321703]
[1754503681503,6.78321703,170.04,169.96,17.671487]
[1754503681712,6.78321703,170.03,169.98,6.06321703]
[1754503681938,6.06321703,170.03,169.99,41.64]
[1754503682132,0.72,170.02,169.99,41.64]
[1754503682835,0.72,170.02,169.99,47.52249302]
[1754503683647,0.7,170.02,169.99,47.52249302]
[1754503684030,0.7,170.02,169.99,53.58571005]
[1754503684917,10.01598504,170.04,169.99,53.58571005]
[1754503685454,0.03,170.06,169.99,53.58571005]
[1754503685615,0.72,170.04,170.01,6.06321703]
[1754503685817,0.75,170.06,170.02,41.64]
[1754503686015,0.72,170.05,170.03,6.06321703]
[1754503686215,0.72,170.05,170.04,41.64]
[1754503687112,6.78321703,170.05,170.04,41.64]
[1754503687625,0.72,170.05,170.04,41.64]
[1754503689445,6.78321703,170.05,170.04,41.64]
[1754503689623,10.73757853,170.05,170.04,41.64]
[1754503690049,6.78321703,170.05,170.04,41.64]
[1754503690339,0.72,170.05,170.04,41.64]
[1754503690944,6.78321703,170.05,170.04,41.64]
[1754503691247,6.78321703,170.05,169.96,5.88373734]
[1754503691248,6.60062334,170.05,169.96,5.88373734]
[1754503691428,9.83535835,170.05,169.98,6.06321703]
[1754503691622,0.72,170.04,169.99,41.62]
[1754503691953,6.06321703,170.03,169.99,41.62]
[1754503692261,0.72,170.02,169.99,41.62]
[1754503692435,6.06321703,170.03,169.99,42.33]
[1754503692633,6.78321703,170.03,169.99,42.33]
[1754503692833,0.72,170.02,169.99,41.62]
[1754503693364,6.06321703,170.03,169.99,41.62]
[1754503693365,6.78321703,170.03,169.99,48.21259028]
[1754503693750,0.72,170.03,169.99,54.27580731]
[1754503693957,3.95583153,170.04,169.99,53.56580731]
[1754503694257,4.70583153,170.06,170.02,6.06321703]
[1754503694428,0.72,170.05,170.03,41.62]
[1754503695230,0.03,170.06,170.03,47.50118724]
[1754503695430,0.75,170.06,170.03,47.50118724]
[1754503696326,6.06321703,170.04,169.99,41.62]
[1754503696525,6.06321703,170.02,169.99,41.62]
[1754503696838,4.67798565,170.02,169.99,41.62]
[1754503697034,0.72,170.02,169.99,41.62]
[1754503697549,0.72,170.02,169.99,47.50265001]
[1754503697855,10.74120268,170.02,169.99,47.50265001]
[1754503698055,6.78321703,170.02,169.99,47.50265001]
[1754503698252,0.72,170.02,169.99,41.62]
[1754503698434,6.06321703,170.0,169.95,0.71]
[1754503698640,6.06321703,170.0,169.96,41.62]
[1754503698950,0.71,169.99,169.96,41.62]
[1754503699158,6.77321703,170.0,169.96,42.3]
[1754503699341,6.77321703,170.0,169.97,0.06]
[1754503699528,3.9600741,170.01,169.98,6.74321703]
[1754503699734,3.95994531,170.02,169.99,0.68]
[1754503700043,0.71,170.02,169.98,47.68321703]
[1754503700251,3.95994531,170.02,170.01,6.06321703]
[1754503700446,0.03,170.06,170.01,48.36321703]
[1754503700447,3.95994531,170.04,170.01,48.36321703]
[1754503700629,0.03,170.06,170.03,6.06321703]
[1754503700832,0.03,170.06,170.05,6.06321703]
[1754503701148,0.03,170.06,170.05,42.3]
[1754503701342,0.03,170.06,170.05,54.24384037]
[1754503704242,0.03,170.06,170.05,48.18062334]
[1754503704442,0.03,170.06,170.05,54.24384037]
[1754503705354,0.03,170.06,170.05,53.56384037]
[1754503705562,0.03,170.06,170.05,47.50062334]
[1754503705736,0.03,170.06,170.05,53.56384037]
[1754503706052,0.03,170.06,170.05,54.24384037]
[1754503706254,0.03,170.06,170.05,48.18062334]
[1754503706554,0.03,170.06,170.05,54.24384037]
[1754503707638,0.03,170.06,170.05,53.56384037]
[1754503707838,0.03,170.06,170.05,47.50062334]
[1754503708040,0.03,170.06,170.03,0.68]
[1754503708041,0.74,170.06,170.03,11.94420652]
[1754503708246,0.74,170.06,170.05,41.62]
[1754503708557,0.03,170.06,170.05,41.62]
[1754503709365,0.03,170.06,170.05,47.50062334]
[1754503709661,0.74,170.06,170.05,41.62]
[1754503710354,0.03,170.06,170.05,47.50062334]
[1754503710765,0.03,170.06,170.05,54.24384037]
[1754503710959,0.03,170.06,170.05,48.18062334]
[1754503711170,0.03,170.06,170.05,12.62384037]
[1754503711455,0.03,170.06,170.05,54.24384037]
[1754503712034,0.03,170.06,170.05,53.56384037]
[1754503713466,0.01,170.06,170.05,53.56384037]
[1754503714150,0.01,170.06,170.05,47.50062334]
[1754503714351,0.01,170.06,170.05,53.56384037]
[1754503714872,0.01,170.06,170.05,47.50062334]
[1754503715058,0.01,170.06,170.05,53.56384037]
[1754503715366,0.01,170.06,170.05,54.24384037]
[1754503717672,0.01,170.06,170.05,48.18062334]
[1754503717841,0.01,170.06,170.05,54.24384037]
[1754503726268,0.01,170.06,170.05,48.18062334]
[1754503726453,0.01,170.06,170.05,54.24384037]
[1754503728842,0.01,170.06,170.05,53.56384037]
[1754503729597,0.01,170.06,170.05,54.24384037]
[1754503731799,0.01,170.06,170.05,5.88062334]
[1754503732090,0.69,170.06,170.05,47.48062334]
[1754503732863,0.69,170.06,170.05,53.54384037]
[1754503733401,0.01,170.06,170.05,53.54384037]
[1754503736496,0.01,170.06,170.05,47.48062334]
[1754503736688,0.69,170.06,170.05,53.54384037]
[1754503737004,0.69,170.06,170.05,47.48062334]
[1754503737303,0.69,170.06,170.05,53.54384037]
[1754503740202,0.01,170.06,170.05,53.54384037]
[1754503740682,0.01,170.06,170.05,47.48062334]
[1754503741027,0.01,170.06,170.05,53.54384037]
[1754503741303,0.69,170.06,170.05,47.48062334]
[1754503741506,0.69,170.06,170.05,53.54384037]
[1754503742214,0.01,170.06,170.05,53.54384037]
[1754503742709,0.01,170.06,170.05,47.48062334]
[1754503743002,0.01,170.06,170.05,53.54384037]
[1754503743891,0.01,170.06,170.05,53.60384037]
[1754503744083,0.01,170.06,170.05,47.54062334]
[1754503744415,0.01,170.06,170.05,53.60384037]
[1754503746338,0.69,170.06,170.05,47.54062334]
[1754503746613,6.75321703,170.06,170.05,0.06]
[1754503746815,16.59691037,170.06,170.02,0.06]
[1754503747001,6.06321703,170.03,170.02,0.06]
[1754503747616,6.74321703,170.03,170.02,0.06]
[1754503749020,0.68,170.03,170.02,0.06]
[1754503749192,6.74321703,170.03,170.02,0.06]
[1754503749392,0.68,170.03,170.02,0.06]
[1754503749595,6.74321703,170.03,170.02,0.06]
[1754503750508,12.62453209,170.03,170.02,0.06]
[1754503750818,10.70093799,170.03,170.02,0.06]
[1754503751405,6.74321703,170.03,170.02,0.06]
[1754503752119,12.62453209,170.03,170.02,0.06]
[1754503752500,27.73074766,170.03,170.02,0.06]
[1754503752805,31.96981851,170.03,170.02,0.06]
[1754503753117,4.63474771,170.03,170.02,0.06]
[1754503753295,6.74321703,170.03,170.02,0.06]
[1754503754301,10.69632431,170.05,170.02,0.06]
[1754503754505,4.63310728,170.05,170.03,41.6]
[1754503754719,0.01,170.06,170.04,6.06321703]
[1754503754910,0.01,170.06,170.05,47.68321703]
[1754503755915,0.01,170.06,170.05,53.56384037]
[1754503756090,0.01,170.06,170.05,5.88062334]
[1754503756296,0.69,170.06,170.05,41.62]
[1754503757499,0.69,170.06,170.04,41.62]
[1754503757997,0.69,170.06,170.04,47.50088034]
[1754503758204,0.68,170.05,170.04,47.50088034]
[1754503758727,0.68,170.05,170.04,41.62]
[1754503759442,0.68,170.05,170.04,47.50096918]
[1754503759800,0.68,170.05,170.04,41.62]
[1754503760137,6.74321703,170.05,170.02,0.06]
[1754503760338,6.06321703,170.03,170.02,0.06]
[1754503760700,6.71321703,170.03,170.02,0.06]
[1754503761404,0.65,170.03,170.02,0.06]
[1754503762207,6.71321703,170.03,170.02,0.06]
[1754503762817,0.65,170.03,170.02,0.06]
[1754503763127,6.71321703,170.03,170.02,0.06]
[1754503764033,6.71321703,170.03,170.02,1.06]
[1754503765514,6.71321703,170.05,170.02,1.06]
[1754503765711,0.65,170.05,170.02,6.94165806]
[1754503765916,0.01,170.06,170.03,48.37321703]
[1754503766119,0.01,170.06,170.04,5.88096918]
[1754503766626,0.01,170.06,170.05,48.37321703]
[1754503768224,0.01,170.06,170.05,54.25384037]
[1754503770239,0.01,170.06,170.05,48.19062334]
[1754503770539,0.01,170.06,170.05,53.56384037]
[1754503772015,0.01,170.06,170.05,47.50062334]
[1754503772211,0.01,170.06,170.05,53.56384037]
[1754503772450,0.01,170.06,170.05,47.50062334]
[1754503775347,0.01,170.06,170.05,53.56384037]